{"text_format":"3","workbook":"xlsx","n_sheets":2,"sheets":["START","PERSONLIG MÅNEDLIG BUDSJETT"],"read":"whole","date_system":"1900"}

{"sheet":"START","index":0,"n_rows":7,"n_cols":2,"rows_kept":7}
[null,"OM DENNE MALEN"]
[null,"Bruk dette regnearket for personlig månedlig budsjett til å spore planlagte og faktiske månedlige inntekter og planlagte og faktiske kostnader."]
[null,"Skriv inn utgifter for forskjellige kategorier i de respektive tabellene."]
[null,"Planlagt saldo, faktisk saldo og forskjell beregnes automatisk."]
[null,"Obs! "]
[null,"Flere instruksjoner finnes i kolonne A i regnearket PERSONLIG MÅNEDLIG BUDSJETT. Denne teksten har blitt skjult med vilje. Hvis du vil fjerne teksten, velger du kolonne A og deretter SLETT. Hvis du vil vise teksten, velger du kolonne A og endrer deretter skriftfarge."]
[null,"Hvis du vil finne ut mer om tabeller i regnearket, trykker du på SKIFT, og deretter på F10 i en tabell, velg alternativet for tabell, og velg deretter Alternativ tekst."]

{"sheet":"PERSONLIG MÅNEDLIG BUDSJETT","index":1,"n_rows":64,"n_cols":10,"rows_kept":64,"merged":[[3,1,5,1],[3,2,3,3],[3,6,4,8],[3,9,4,9],[4,2,4,3],[5,2,5,3],[5,6,6,8],[5,9,6,9],[7,1,9,1],[7,2,7,3],[7,6,8,8],[7,9,8,9],[8,2,8,3],[9,2,9,3],[22,6,22,9],[23,1,23,4],[31,6,31,9],[33,1,33,4],[38,6,38,9],[40,1,40,4],[44,6,44,9],[46,1,46,4],[50,6,50,9],[54,1,54,4],[57,6,57,9],[58,6,59,8],[58,9,59,9],[60,6,61,8],[60,9,61,9],[62,6,63,8],[62,9,63,9],[64,1,64,4]]}
["Opprett et personlig månedlig budsjett i dette regnearket. Du finner nyttige instruksjoner om hvordan du bruker dette regnearket i cellene i denne kolonnen. Trykk på PIL NED for å komme i gang."]
["Tittelen på dette regnearket vises i cellen til høyre Neste instruksjon er i celle A4.","PERSONLIG MÅNEDLIG BUDSJETT"]
[]
["Etiketten for planlagte månedlige inntekter er i cellen til høyre. Skriv inn inntekt 1 i celle E4 og ekstra inntekt i E5 for å beregne totale månedlige inntekter i E6. Neste instruksjon er i celle A6.","PLANLAGTE MÅNEDLIGE INNTEKTER","Inntekt 1",null,{"v":4300,"d":"kr 4,300.00"},null,"PLANLAGT SALDO \n(Planlagte inntekter minus utgifter)",null,null,{"$f":"E6-J59","v":{"v":3405,"d":"kr 3,405.00"}}]
[null,null,"Ekstra inntekt",null,{"v":300,"d":"kr 300.00"}]
["Planlagt saldo beregnes automatisk i celle J4, faktisk saldo i J6 og forskjell i J8. Neste instruksjon er i celle A8.",null,"Totale månedlige inntekter",null,{"$f":"SUM(E4:E5)","v":{"v":4600,"d":"kr 4,600.00"}},null,"FAKTISK SALDO \n(Faktiske inntekter minus utgifter)",null,null,{"$f":"E10-J61","v":{"v":3064,"d":"kr 3,064.00"}}]
[]
["Etiketten for faktiske månedlige inntekter er i cellen til høyre. Skriv inn inntekt 1 i celle E8 og ekstra inntekt i E9 for å beregne totale månedlige inntekter i E10. Neste instruksjon er i celle A12.","FAKTISKE MÅNEDLIGE INNTEKTER","Inntekt 1",null,{"v":4000,"d":"kr 4,000.00"},null,"FORSKJELL \n(Faktiske minus planlagte)",null,null,{"$f":"J6-J4","v":{"v":-341,"d":"-kr 341.00"}}]
[null,null,"Ekstra inntekt",null,{"v":300,"d":"kr 300.00"}]
[null,null,"Totale månedlige inntekter",null,{"$f":"SUM(E8:E9)","v":{"v":4300,"d":"kr 4,300.00"}}]
[]
["Skriv inn detaljer i tabellen for bolig som starter i cellen til høyre, og i tabellen for underholdning som starter i celle G12. Neste instruksjon er i celle A25.","BOLIG","Planlagte kostnader","Faktiske kostnader","Forskjell",null,"UNDERHOLDNING","Planlagte kostnader","Faktiske kostnader","Forskjell"]
[null,"Boliglån eller leie",{"v":1000,"d":"kr 1,000.00"},{"v":1000,"d":"kr 1,000.00"},{"$f":"Bolig[[#This Row],[Planlagte kostnader]]-Bolig[[#This Row],[Faktiske kostnader]]","v":{"v":0,"d":"kr 0.00"}},null,"Video og DVD",null,null,{"$f":"Underholdning[[#This Row],[Planlagte kostnader]]-Underholdning[[#This Row],[Faktiske kostnader]]","v":{"v":0,"d":"kr 0.00"}}]
[null,"Telefon",{"v":54,"d":"kr 54.00"},{"v":100,"d":"kr 100.00"},{"$f":"Bolig[[#This Row],[Planlagte kostnader]]-Bolig[[#This Row],[Faktiske kostnader]]","v":{"v":-46,"d":"-kr 46.00"}},null,"CD-er",null,null,{"$f":"Underholdning[[#This Row],[Planlagte kostnader]]-Underholdning[[#This Row],[Faktiske kostnader]]","v":{"v":0,"d":"kr 0.00"}}]
[null,"Strøm",{"v":44,"d":"kr 44.00"},{"v":56,"d":"kr 56.00"},{"$f":"Bolig[[#This Row],[Planlagte kostnader]]-Bolig[[#This Row],[Faktiske kostnader]]","v":{"v":-12,"d":"-kr 12.00"}},null,"Filmer",null,null,{"$f":"Underholdning[[#This Row],[Planlagte kostnader]]-Underholdning[[#This Row],[Faktiske kostnader]]","v":{"v":0,"d":"kr 0.00"}}]
[null,"Gass",{"v":22,"d":"kr 22.00"},{"v":28,"d":"kr 28.00"},{"$f":"Bolig[[#This Row],[Planlagte kostnader]]-Bolig[[#This Row],[Faktiske kostnader]]","v":{"v":-6,"d":"-kr 6.00"}},null,"Konserter",null,null,{"$f":"Underholdning[[#This Row],[Planlagte kostnader]]-Underholdning[[#This Row],[Faktiske kostnader]]","v":{"v":0,"d":"kr 0.00"}}]
[null,"Vann og kloakk",{"v":8,"d":"kr 8.00"},{"v":8,"d":"kr 8.00"},{"$f":"Bolig[[#This Row],[Planlagte kostnader]]-Bolig[[#This Row],[Faktiske kostnader]]","v":{"v":0,"d":"kr 0.00"}},null,"Sportsarrangementer",null,null,{"$f":"Underholdning[[#This Row],[Planlagte kostnader]]-Underholdning[[#This Row],[Faktiske kostnader]]","v":{"v":0,"d":"kr 0.00"}}]
[null,"Kabel-TV",{"v":34,"d":"kr 34.00"},{"v":34,"d":"kr 34.00"},{"$f":"Bolig[[#This Row],[Planlagte kostnader]]-Bolig[[#This Row],[Faktiske kostnader]]","v":{"v":0,"d":"kr 0.00"}},null,"Teater",null,null,{"$f":"Underholdning[[#This Row],[Planlagte kostnader]]-Underholdning[[#This Row],[Faktiske kostnader]]","v":{"v":0,"d":"kr 0.00"}}]
[null,"Renovasjon",{"v":10,"d":"kr 10.00"},{"v":10,"d":"kr 10.00"},{"$f":"Bolig[[#This Row],[Planlagte kostnader]]-Bolig[[#This Row],[Faktiske kostnader]]","v":{"v":0,"d":"kr 0.00"}},null,"Annet",null,null,{"$f":"Underholdning[[#This Row],[Planlagte kostnader]]-Underholdning[[#This Row],[Faktiske kostnader]]","v":{"v":0,"d":"kr 0.00"}}]
[null,"Vedlikehold eller reparasjoner",{"v":23,"d":"kr 23.00"},{"v":0,"d":"kr 0.00"},{"$f":"Bolig[[#This Row],[Planlagte kostnader]]-Bolig[[#This Row],[Faktiske kostnader]]","v":{"v":23,"d":"kr 23.00"}},null,"Annet",null,null,{"$f":"Underholdning[[#This Row],[Planlagte kostnader]]-Underholdning[[#This Row],[Faktiske kostnader]]","v":{"v":0,"d":"kr 0.00"}}]
[null,"Utstyr",{"v":0,"d":"kr 0.00"},{"v":0,"d":"kr 0.00"},{"$f":"Bolig[[#This Row],[Planlagte kostnader]]-Bolig[[#This Row],[Faktiske kostnader]]","v":{"v":0,"d":"kr 0.00"}},null,"Annet",null,null,{"$f":"Underholdning[[#This Row],[Planlagte kostnader]]-Underholdning[[#This Row],[Faktiske kostnader]]","v":{"v":0,"d":"kr 0.00"}}]
[null,"Annet",{"v":0,"d":"kr 0.00"},{"v":0,"d":"kr 0.00"},{"$f":"Bolig[[#This Row],[Planlagte kostnader]]-Bolig[[#This Row],[Faktiske kostnader]]","v":{"v":0,"d":"kr 0.00"}},null,"Delsum",null,null,{"$f":"SUBTOTAL(109,Underholdning[Forskjell])","v":{"v":0,"d":"kr 0.00"}}]
[null,"Delsum",null,null,{"$f":"SUBTOTAL(109,Bolig[Forskjell])","v":{"v":-41,"d":"-kr 41.00"}}]
[{"$nulls":6},"LÅN","Planlagte kostnader","Faktiske kostnader","Forskjell"]
["Skriv inn detaljer i tabellen for transport som starter i cellen til høyre, og i tabellen for lån som starter i celle G24. Neste instruksjon er i celle A35.","TRANSPORT","Planlagte kostnader","Faktiske kostnader","Forskjell",null,"Personlig",null,null,{"$f":"Lån[[#This Row],[Planlagte kostnader]]-Lån[[#This Row],[Faktiske kostnader]]","v":{"v":0,"d":"kr 0.00"}}]
[null,"Billån",null,null,{"$f":"Transport[[#This Row],[Planlagte kostnader]]-Transport[[#This Row],[Faktiske kostnader]]","v":{"v":0,"d":"kr 0.00"}},null,"Student",null,null,{"$f":"Lån[[#This Row],[Planlagte kostnader]]-Lån[[#This Row],[Faktiske kostnader]]","v":{"v":0,"d":"kr 0.00"}}]
[null,"Buss og taxi",null,null,{"$f":"Transport[[#This Row],[Planlagte kostnader]]-Transport[[#This Row],[Faktiske kostnader]]","v":{"v":0,"d":"kr 0.00"}},null,"Kredittkort",null,null,{"$f":"Lån[[#This Row],[Planlagte kostnader]]-Lån[[#This Row],[Faktiske kostnader]]","v":{"v":0,"d":"kr 0.00"}}]
[null,"Forsikring",null,null,{"$f":"Transport[[#This Row],[Planlagte kostnader]]-Transport[[#This Row],[Faktiske kostnader]]","v":{"v":0,"d":"kr 0.00"}},null,"Kredittkort",null,null,{"$f":"Lån[[#This Row],[Planlagte kostnader]]-Lån[[#This Row],[Faktiske kostnader]]","v":{"v":0,"d":"kr 0.00"}}]
[null,"Lisensiering",null,null,{"$f":"Transport[[#This Row],[Planlagte kostnader]]-Transport[[#This Row],[Faktiske kostnader]]","v":{"v":0,"d":"kr 0.00"}},null,"Kredittkort",null,null,{"$f":"Lån[[#This Row],[Planlagte kostnader]]-Lån[[#This Row],[Faktiske kostnader]]","v":{"v":0,"d":"kr 0.00"}}]
[null,"Drivstoff",null,null,{"$f":"Transport[[#This Row],[Planlagte kostnader]]-Transport[[#This Row],[Faktiske kostnader]]","v":{"v":0,"d":"kr 0.00"}},null,"Annet",null,null,{"$f":"Lån[[#This Row],[Planlagte kostnader]]-Lån[[#This Row],[Faktiske kostnader]]","v":{"v":0,"d":"kr 0.00"}}]
[null,"Vedlikehold",null,null,{"$f":"Transport[[#This Row],[Planlagte kostnader]]-Transport[[#This Row],[Faktiske kostnader]]","v":{"v":0,"d":"kr 0.00"}},null,"Delsum",null,null,{"$f":"SUBTOTAL(109,Lån[Forskjell])","v":{"v":0,"d":"kr 0.00"}}]
[null,"Annet",null,null,{"$f":"Transport[[#This Row],[Planlagte kostnader]]-Transport[[#This Row],[Faktiske kostnader]]","v":{"v":0,"d":"kr 0.00"}}]
[null,"Delsum",null,null,{"$f":"SUBTOTAL(109,Transport[Forskjell])","v":{"v":0,"d":"kr 0.00"}},null,"SKATTER OG AVGIFTER","Planlagte kostnader","Faktiske kostnader","Forskjell"]
[{"$nulls":6},"Føderal",null,null,{"$f":"Skatter_og_avgifter[[#This Row],[Planlagte kostnader]]-Skatter_og_avgifter[[#This Row],[Faktiske kostnader]]","v":{"v":0,"d":"kr 0.00"}}]
["Skriv inn detaljer i tabellen for forsikring som starter i cellen til høyre, og i tabellen for skatter og avgifter som starter i celle G33. Neste instruksjon er i celle A42.","FORSIKRING","Planlagte kostnader","Faktiske kostnader","Forskjell",null,"Delstat",null,null,{"$f":"Skatter_og_avgifter[[#This Row],[Planlagte kostnader]]-Skatter_og_avgifter[[#This Row],[Faktiske kostnader]]","v":{"v":0,"d":"kr 0.00"}}]
[null,"Hjem",null,null,{"$f":"Forsikring[[#This Row],[Planlagte kostnader]]-Forsikring[[#This Row],[Faktiske kostnader]]","v":{"v":0,"d":"kr 0.00"}},null,"Lokal",null,null,{"$f":"Skatter_og_avgifter[[#This Row],[Planlagte kostnader]]-Skatter_og_avgifter[[#This Row],[Faktiske kostnader]]","v":{"v":0,"d":"kr 0.00"}}]
[null,"Helse",null,null,{"$f":"Forsikring[[#This Row],[Planlagte kostnader]]-Forsikring[[#This Row],[Faktiske kostnader]]","v":{"v":0,"d":"kr 0.00"}},null,"Annet",null,null,{"$f":"Skatter_og_avgifter[[#This Row],[Planlagte kostnader]]-Skatter_og_avgifter[[#This Row],[Faktiske kostnader]]","v":{"v":0,"d":"kr 0.00"}}]
[null,"Liv",null,null,{"$f":"Forsikring[[#This Row],[Planlagte kostnader]]-Forsikring[[#This Row],[Faktiske kostnader]]","v":{"v":0,"d":"kr 0.00"}},null,"Delsum",null,null,{"$f":"SUBTOTAL(109,Skatter_og_avgifter[Forskjell])","v":{"v":0,"d":"kr 0.00"}}]
[null,"Annet",null,null,{"$f":"Forsikring[[#This Row],[Planlagte kostnader]]-Forsikring[[#This Row],[Faktiske kostnader]]","v":{"v":0,"d":"kr 0.00"}}]
[null,"Delsum",null,null,{"$f":"SUBTOTAL(109,Forsikring[Forskjell])","v":{"v":0,"d":"kr 0.00"}},null,"SPARING ELLER INVESTERING","Planlagte kostnader","Faktiske kostnader","Forskjell"]
[{"$nulls":6},"Pensjonskonto",null,null,{"$f":"Sparing[[#This Row],[Planlagte kostnader]]-Sparing[[#This Row],[Faktiske kostnader]]","v":{"v":0,"d":"kr 0.00"}}]
["Skriv inn detaljer i tabellen for mat som starter i cellen til høyre, og i tabellen for sparing som starter i celle G40. Neste instruksjon er i celle A48.","MAT","Planlagte kostnader","Faktiske kostnader","Forskjell",null,"Investeringskonto",null,null,{"$f":"Sparing[[#This Row],[Planlagte kostnader]]-Sparing[[#This Row],[Faktiske kostnader]]","v":{"v":0,"d":"kr 0.00"}}]
[null,"Dagligvarer",null,null,{"$f":"Mat[[#This Row],[Planlagte kostnader]]-Mat[[#This Row],[Faktiske kostnader]]","v":{"v":0,"d":"kr 0.00"}},null,"Annet",null,null,{"$f":"Sparing[[#This Row],[Planlagte kostnader]]-Sparing[[#This Row],[Faktiske kostnader]]","v":{"v":0,"d":"kr 0.00"}}]
[null,"Spise ute",null,null,{"$f":"Mat[[#This Row],[Planlagte kostnader]]-Mat[[#This Row],[Faktiske kostnader]]","v":{"v":0,"d":"kr 0.00"}},null,"Delsum",null,null,{"$f":"SUBTOTAL(109,Sparing[Forskjell])","v":{"v":0,"d":"kr 0.00"}}]
[null,"Annet",null,null,{"$f":"Mat[[#This Row],[Planlagte kostnader]]-Mat[[#This Row],[Faktiske kostnader]]","v":{"v":0,"d":"kr 0.00"}}]
[null,"Delsum",null,null,{"$f":"SUBTOTAL(109,Mat[Forskjell])","v":{"v":0,"d":"kr 0.00"}},null,"GAVER OG DONASJONER","Planlagte kostnader","Faktiske kostnader","Forskjell"]
[{"$nulls":6},"Veldedighet 1",null,null,{"$f":"Gaver[[#This Row],[Planlagte kostnader]]-Gaver[[#This Row],[Faktiske kostnader]]","v":{"v":0,"d":"kr 0.00"}}]
["Skriv inn detaljer i tabellen for kjæledyr som starter i cellen til høyre, og i tabellen for gaver som starter i celle G46. Neste instruksjon er i celle A56.","KJÆLEDYR","Planlagte kostnader","Faktiske kostnader","Forskjell",null,"Veldedighet 2",null,null,{"$f":"Gaver[[#This Row],[Planlagte kostnader]]-Gaver[[#This Row],[Faktiske kostnader]]","v":{"v":0,"d":"kr 0.00"}}]
[null,"Mat",null,null,{"$f":"Kjæledyr[[#This Row],[Planlagte kostnader]]-Kjæledyr[[#This Row],[Faktiske kostnader]]","v":{"v":0,"d":"kr 0.00"}},null,"Veldedighet 3",null,null,{"$f":"Gaver[[#This Row],[Planlagte kostnader]]-Gaver[[#This Row],[Faktiske kostnader]]","v":{"v":0,"d":"kr 0.00"}}]
[null,"Medisinsk",null,null,{"$f":"Kjæledyr[[#This Row],[Planlagte kostnader]]-Kjæledyr[[#This Row],[Faktiske kostnader]]","v":{"v":0,"d":"kr 0.00"}},null,"Delsum",null,null,{"$f":"SUBTOTAL(109,Gaver[Forskjell])","v":{"v":0,"d":"kr 0.00"}}]
[null,"Pleie",null,null,{"$f":"Kjæledyr[[#This Row],[Planlagte kostnader]]-Kjæledyr[[#This Row],[Faktiske kostnader]]","v":{"v":0,"d":"kr 0.00"}}]
[null,"Leker",null,null,{"$f":"Kjæledyr[[#This Row],[Planlagte kostnader]]-Kjæledyr[[#This Row],[Faktiske kostnader]]","v":{"v":0,"d":"kr 0.00"}},null,"JURIDISK","Planlagte kostnader","Faktiske kostnader","Forskjell"]
[null,"Annet",null,null,{"$f":"Kjæledyr[[#This Row],[Planlagte kostnader]]-Kjæledyr[[#This Row],[Faktiske kostnader]]","v":{"v":0,"d":"kr 0.00"}},null,"Advokat",null,null,{"$f":"Juridisk[[#This Row],[Planlagte kostnader]]-Juridisk[[#This Row],[Faktiske kostnader]]","v":{"v":0,"d":"kr 0.00"}}]
[null,"Delsum",null,null,{"$f":"SUBTOTAL(109,Kjæledyr[Forskjell])","v":{"v":0,"d":"kr 0.00"}},null,"Underholdsbidrag",null,null,{"$f":"Juridisk[[#This Row],[Planlagte kostnader]]-Juridisk[[#This Row],[Faktiske kostnader]]","v":{"v":0,"d":"kr 0.00"}}]
[{"$nulls":6},"Utestående betalinger",null,null,{"$f":"Juridisk[[#This Row],[Planlagte kostnader]]-Juridisk[[#This Row],[Faktiske kostnader]]","v":{"v":0,"d":"kr 0.00"}}]
["Skriv inn detaljer i tabellen for personlig pleie som starter i cellen til høyre, og i tabellen for juridisk som starter i celle G52. Neste instruksjon er i celle A59.","PERSONLIG PLEIE","Planlagte kostnader","Faktiske kostnader","Forskjell",null,"Annet",null,null,{"$f":"Juridisk[[#This Row],[Planlagte kostnader]]-Juridisk[[#This Row],[Faktiske kostnader]]","v":{"v":0,"d":"kr 0.00"}}]
[null,"Medisinsk",null,null,{"$f":"PersonligPleie[[#This Row],[Planlagte kostnader]]-PersonligPleie[[#This Row],[Faktiske kostnader]]","v":{"v":0,"d":"kr 0.00"}},null,"Delsum",null,null,{"$f":"SUBTOTAL(109,Juridisk[Forskjell])","v":{"v":0,"d":"kr 0.00"}}]
[null,"Hår/negler",null,null,{"$f":"PersonligPleie[[#This Row],[Planlagte kostnader]]-PersonligPleie[[#This Row],[Faktiske kostnader]]","v":{"v":0,"d":"kr 0.00"}}]
["Totale planlagte kostnader beregnes automatisk i celle J59, totale faktiske kostnader i J61, og total forskjell i J63.","Klær",null,null,{"$f":"PersonligPleie[[#This Row],[Planlagte kostnader]]-PersonligPleie[[#This Row],[Faktiske kostnader]]","v":{"v":0,"d":"kr 0.00"}},null,"TOTALE PLANLAGTE KOSTNADER",null,null,{"$f":"SUBTOTAL(109,Bolig[Planlagte kostnader],Transport[Planlagte kostnader],Forsikring[Planlagte kostnader],Mat[Planlagte kostnader],Kjæledyr[Planlagte kostnader],PersonligPleie[Planlagte kostnader],Underholdning[Planlagte kostnader],Lån[Planlagte kostnader],Skatter_og_avgifter[Planlagte kostnader],Sparing[Planlagte kostnader],Gaver[Planlagte kostnader],Juridisk[Planlagte kostnader])","v":{"v":1195,"d":"kr 1,195.00"}}]
[null,"Rens av klær",null,null,{"$f":"PersonligPleie[[#This Row],[Planlagte kostnader]]-PersonligPleie[[#This Row],[Faktiske kostnader]]","v":{"v":0,"d":"kr 0.00"}}]
[null,"Treningsstudio",null,null,{"$f":"PersonligPleie[[#This Row],[Planlagte kostnader]]-PersonligPleie[[#This Row],[Faktiske kostnader]]","v":{"v":0,"d":"kr 0.00"}},null,"TOTALE FAKTISKE KOSTNADER",null,null,{"$f":"SUBTOTAL(109,Bolig[Faktiske kostnader],Transport[Faktiske kostnader],Forsikring[Faktiske kostnader],Mat[Faktiske kostnader],Kjæledyr[Faktiske kostnader],PersonligPleie[Faktiske kostnader],Underholdning[Faktiske kostnader],Lån[Faktiske kostnader],Skatter_og_avgifter[Faktiske kostnader],Sparing[Faktiske kostnader],Gaver[Faktiske kostnader],Juridisk[Faktiske kostnader])","v":{"v":1236,"d":"kr 1,236.00"}}]
[null,"Kontingenter",null,null,{"$f":"PersonligPleie[[#This Row],[Planlagte kostnader]]-PersonligPleie[[#This Row],[Faktiske kostnader]]","v":{"v":0,"d":"kr 0.00"}}]
[null,"Annet",null,null,{"$f":"PersonligPleie[[#This Row],[Planlagte kostnader]]-PersonligPleie[[#This Row],[Faktiske kostnader]]","v":{"v":0,"d":"kr 0.00"}},null,"TOTAL FORSKJELL",null,null,{"$f":"J59-J61","v":{"v":-41,"d":"-kr 41.00"}}]
[null,"Delsum",null,null,{"$f":"SUBTOTAL(109,PersonligPleie[Forskjell])","v":{"v":0,"d":"kr 0.00"}}]